[Event "Late-Titled-Tuesday-Blitz-May-14-2024"]
[Site "Chess.com"]
[Date "2024.05.14"]
[Round "10"]
[White "NateSolon"]
[Black "DishonorOnYourCow"]
[Result "0-1"]
[WhiteElo "2648"]
[BlackElo "2554"]
[TimeControl "180+1"]
[EndTime "15:54:57 PDT"]
[Termination "DishonorOnYourCow won by resignation"]

1. d4 {[%clk 0:02:50.1]} 1... Nf6 {[%clk 0:02:59]} 2. Bf4 {[%clk 0:02:49.5]}
2... g6 {[%clk 0:02:59.3]} 3. Nf3 {[%clk 0:02:45.6]} 3... Bg7 {[%clk 0:02:59.2]}
4. c3 {[%clk 0:02:46]} 4... d5 {[%clk 0:02:59.3]} 5. Nbd2 {[%clk 0:02:45.7]}
5... O-O {[%clk 0:02:59.6]} 6. e3 {[%clk 0:02:46]} 6... c5 {[%clk 0:03:00]} 7.
dxc5 {[%clk 0:02:43.6]} 7... Nfd7 {[%clk 0:02:59]} 8. Nb3 {[%clk 0:02:41.6]}
8... e5 {[%clk 0:02:15.2]} 9. Bg5 {[%clk 0:02:41]} 9... Qe8 {[%clk 0:01:58.6]}
10. Qxd5 {[%clk 0:02:38.9]} 10... e4 {[%clk 0:01:58.8]} 11. Nfd4 {[%clk
0:02:35.1]} 11... Ne5 {[%clk 0:01:42.1]} 12. Qxe4 {[%clk 0:02:28.4]} 12... Nbc6
{[%clk 0:01:42.2]} 13. Be2 {[%clk 0:02:04.4]} 13... a5 {[%clk 0:01:19.5]} 14. a4
{[%clk 0:01:46.6]} 14... f5 {[%clk 0:00:54.3]} 15. Qd5+ {[%clk 0:01:45.8]} 15...
Kh8 {[%clk 0:00:54.8]} 16. h4 {[%clk 0:01:37]} 16... Nxd4 {[%clk 0:00:34.6]} 17.
Nxd4 {[%clk 0:01:35.7]} 17... Bd7 {[%clk 0:00:34.7]} 18. h5 {[%clk 0:01:31.8]}
18... Bc6 {[%clk 0:00:29.7]} 19. Nxc6 {[%clk 0:01:29.6]} 19... bxc6 {[%clk
0:00:30.6]} 20. Qd1 {[%clk 0:01:09.3]} 20... Nf7 {[%clk 0:00:22.8]} 21. Bf4
{[%clk 0:01:01.4]} 21... g5 {[%clk 0:00:22.5]} 22. Bh2 {[%clk 0:00:53.2]} 22...
f4 {[%clk 0:00:20.5]} 23. exf4 {[%clk 0:00:48.1]} 23... Rd8 {[%clk 0:00:18.8]}
24. Qc2 {[%clk 0:00:46.1]} 24... gxf4 {[%clk 0:00:15.9]} 25. Bxf4 {[%clk
0:00:43.2]} 25... Ne5 {[%clk 0:00:15.2]} 26. Be3 {[%clk 0:00:40.8]} 26... Qf7
{[%clk 0:00:07.6]} 27. Rd1 {[%clk 0:00:36.4]} 27... Rxd1+ {[%clk 0:00:06.9]} 28.
Qxd1 {[%clk 0:00:37.3]} 28... Re8 {[%clk 0:00:04]} 29. O-O {[%clk 0:00:33.9]}
29... Bf6 {[%clk 0:00:03.9]} 30. Bd4 {[%clk 0:00:26.2]} 30... Qg7 {[%clk
0:00:04.1]} 31. g3 {[%clk 0:00:22.7]} 31... Rd8 {[%clk 0:00:01.7]} 32. Qc2
{[%clk 0:00:20.5]} 32... Nf7 {[%clk 0:00:01.7]} 33. Bxf6 {[%clk 0:00:19]} 33...
Qxf6 {[%clk 0:00:02.6]} 34. Rd1 {[%clk 0:00:19]} 34... Re8 {[%clk 0:00:03.2]}
35. Kg2 {[%clk 0:00:17.6]} 35... Qe5 {[%clk 0:00:02.3]} 36. Bf3 {[%clk
0:00:17.7]} 36... Ng5 {[%clk 0:00:02.2]} 37. Rd3 {[%clk 0:00:15.8]} 37... Qxc5
{[%clk 0:00:02.1]} 38. Qd2 {[%clk 0:00:14.4]} 38... Rf8 {[%clk 0:00:01.6]} 39.
Bd1 {[%clk 0:00:10.6]} 39... Qf5 {[%clk 0:00:01.6]} 40. f4 {[%clk 0:00:09.9]}
40... Qh3+ {[%clk 0:00:01.8]} 41. Kg1 {[%clk 0:00:09]} 41... Ne4 {[%clk
0:00:02.2]} 42. Qg2 {[%clk 0:00:08.2]} 42... Qf5 {[%clk 0:00:01.2]} 43. Re3
{[%clk 0:00:08.3]} 43... Nf6 {[%clk 0:00:01.3]} 44. Bc2 {[%clk 0:00:08.6]} 44...
Qc5 {[%clk 0:00:00.8]} 45. Qe2 {[%clk 0:00:02.7]} 45... Ng4 {[%clk 0:00:01.4]}
46. Qxg4 {[%clk 0:00:03.3]} 46... Qxe3+ {[%clk 0:00:01.5]} 47. Kg2 {[%clk
0:00:03.7]} 47... Qd2+ {[%clk 0:00:02]} 48. Kh3 {[%clk 0:00:04.4]} 48... Qxc2
{[%clk 0:00:02.5]} 49. h6 {[%clk 0:00:04.7]} 49... Qf5 {[%clk 0:00:03.1]} 0-1

[Event "Late-Titled-Tuesday-Blitz-May-14-2024"]
[Site "Chess.com"]
[Date "2024.05.14"]
[Round "10"]
[White "nitpicker"]
[Black "Zq1"]
[Result "0-1"]
[WhiteElo "2311"]
[BlackElo "2579"]
[TimeControl "180+1"]
[EndTime "15:54:57 PDT"]
[Termination "Zq1 won by resignation"]

1. d4 {[%clk 0:03:00.9]} 1... Nf6 {[%clk 0:02:58.9]} 2. c4 {[%clk 0:03:00.8]}
2... a6 {[%clk 0:02:59]} 3. e3 {[%clk 0:02:53.2]} 3... e6 {[%clk 0:02:55.8]} 4.
a3 {[%clk 0:02:51.7]} 4... c5 {[%clk 0:02:55.7]} 5. Nf3 {[%clk 0:02:52]} 5... d5
{[%clk 0:02:53.8]} 6. cxd5 {[%clk 0:02:50.9]} 6... exd5 {[%clk 0:02:53.3]} 7.
Nc3 {[%clk 0:02:49.3]} 7... Nc6 {[%clk 0:02:51.7]} 8. Be2 {[%clk 0:02:48.2]}
8... c4 {[%clk 0:02:51]} 9. O-O {[%clk 0:02:40.9]} 9... b5 {[%clk 0:02:50.7]}
10. Ne5 {[%clk 0:02:40.4]} 10... Bb7 {[%clk 0:02:50.8]} 11. f4 {[%clk
0:02:39.9]} 11... Bd6 {[%clk 0:02:50.7]} 12. Bf3 {[%clk 0:02:39.9]} 12... Ne7
{[%clk 0:02:50.3]} 13. g4 {[%clk 0:02:36.5]} 13... O-O {[%clk 0:02:46.3]} 14.
Qc2 {[%clk 0:02:35.5]} 14... Rb8 {[%clk 0:02:37.1]} 15. g5 {[%clk 0:02:35.2]}
15... Ne8 {[%clk 0:02:33.9]} 16. Qg2 {[%clk 0:02:23.5]} 16... Bxe5 {[%clk
0:02:22.9]} 17. fxe5 {[%clk 0:02:21.6]} 17... Bc6 {[%clk 0:02:21.4]} 18. Bd2
{[%clk 0:02:13]} 18... g6 {[%clk 0:02:15]} 19. Be1 {[%clk 0:02:00.8]} 19... Ng7
{[%clk 0:02:13.8]} 20. Rd1 {[%clk 0:01:49.8]} 20... a5 {[%clk 0:02:12.3]} 21. e4
{[%clk 0:01:47.7]} 21... dxe4 {[%clk 0:02:10.5]} 22. Bxe4 {[%clk 0:01:47.4]}
22... b4 {[%clk 0:01:46.6]} 23. Bxc6 {[%clk 0:01:38.2]} 23... bxc3 {[%clk
0:01:45.8]} 24. bxc3 {[%clk 0:01:36.1]} 24... Ngf5 {[%clk 0:01:44.8]} 25. Be4
{[%clk 0:01:30.8]} 25... Ne3 {[%clk 0:01:43.3]} 26. Qf3 {[%clk 0:01:24]} 26...
Nxd1 {[%clk 0:01:41.1]} 27. Qxd1 {[%clk 0:01:24.6]} 27... Rb2 {[%clk 0:01:37.1]}
28. d5 {[%clk 0:01:22]} 28... Qd7 {[%clk 0:01:29.9]} 29. Qf3 {[%clk 0:01:14.5]}
29... Nf5 {[%clk 0:01:22.8]} 30. Bf2 {[%clk 0:01:08.1]} 30... Re8 {[%clk
0:01:12.5]} 31. Qf4 {[%clk 0:01:00.3]} 31... Re2 {[%clk 0:00:58.5]} 32. Bxf5
{[%clk 0:00:44.2]} 32... Qxf5 {[%clk 0:00:56.9]} 33. Qxf5 {[%clk 0:00:44.8]}
33... gxf5 {[%clk 0:00:56.4]} 34. Bd4 {[%clk 0:00:45.5]} 34... Rb8 {[%clk
0:00:50.7]} 35. d6 {[%clk 0:00:31.2]} 35... Rbb2 {[%clk 0:00:45.5]} 36. Rf2
{[%clk 0:00:26.9]} 36... Rxf2 {[%clk 0:00:41.8]} 37. Bxf2 {[%clk 0:00:27.8]}
37... Kf8 {[%clk 0:00:40.1]} 38. Kg2 {[%clk 0:00:18.8]} 38... Re2 {[%clk
0:00:37.7]} 39. Kf3 {[%clk 0:00:14.8]} 39... Rxe5 {[%clk 0:00:37.3]} 40. Bg3
{[%clk 0:00:13.1]} 40... Re4 {[%clk 0:00:33.1]} 41. Bf2 {[%clk 0:00:10.7]} 41...
Ke8 {[%clk 0:00:31.3]} 42. Bb6 {[%clk 0:00:10.4]} 42... a4 {[%clk 0:00:27.1]}
43. Bc5 {[%clk 0:00:09.7]} 43... Kd7 {[%clk 0:00:26.8]} 44. Bb4 {[%clk 0:00:09]}
44... Rg4 {[%clk 0:00:24.1]} 45. Kf2 {[%clk 0:00:05.3]} 45... Rxg5 {[%clk
0:00:23.9]} 46. Kf3 {[%clk 0:00:06.1]} 46... Rg4 {[%clk 0:00:24.2]} 47. Kf2
{[%clk 0:00:06.4]} 47... Re4 {[%clk 0:00:24]} 48. Kf3 {[%clk 0:00:06.5]} 48...
Ke6 {[%clk 0:00:20]} 49. Kf2 {[%clk 0:00:06.3]} 49... Re5 {[%clk 0:00:19.9]} 50.
Kf3 {[%clk 0:00:06.6]} 50... h5 {[%clk 0:00:18.9]} 51. Kf4 {[%clk 0:00:05.7]}
51... f6 {[%clk 0:00:17.9]} 52. Kf3 {[%clk 0:00:04.4]} 52... Rd5 {[%clk
0:00:17]} 53. Kf4 {[%clk 0:00:04.7]} 53... Rd3 {[%clk 0:00:17]} 54. h4 {[%clk
0:00:03]} 54... Rh3 {[%clk 0:00:15.3]} 55. Bc5 {[%clk 0:00:02.2]} 55... Rxh4+
{[%clk 0:00:14.8]} 56. Kf3 {[%clk 0:00:02.9]} 56... Re4 {[%clk 0:00:14.5]} 57.
Bb4 {[%clk 0:00:02.2]} 57... h4 {[%clk 0:00:12]} 0-1

[Event "Late-Titled-Tuesday-Blitz-May-14-2024"]
[Site "Chess.com"]
[Date "2024.05.14"]
[Round "10"]
[White "ShahMatKanal"]
[Black "imdvb6307"]
[Result "0-1"]
[WhiteElo "2387"]
[BlackElo "2529"]
[TimeControl "180+1"]
[EndTime "15:55:01 PDT"]
[Termination "imdvb6307 won on time"]

1. d4 {[%clk 0:03:00.9]} 1... d5 {[%clk 0:02:59.1]} 2. c4 {[%clk 0:03:00.6]}
2... c6 {[%clk 0:02:59]} 3. Nf3 {[%clk 0:03:00]} 3... Nf6 {[%clk 0:02:59.1]} 4.
Nc3 {[%clk 0:02:58.8]} 4... e6 {[%clk 0:02:59.4]} 5. cxd5 {[%clk 0:02:55.1]}
5... exd5 {[%clk 0:02:58.4]} 6. Bg5 {[%clk 0:02:55.5]} 6... Be7 {[%clk
0:02:54.2]} 7. e3 {[%clk 0:02:55.1]} 7... O-O {[%clk 0:02:51.9]} 8. Qc2 {[%clk
0:02:49.4]} 8... Nh5 {[%clk 0:02:50.2]} 9. Bxe7 {[%clk 0:02:44.3]} 9... Qxe7
{[%clk 0:02:50.3]} 10. O-O-O {[%clk 0:02:32.4]} 10... a5 {[%clk 0:02:48.6]} 11.
Bd3 {[%clk 0:02:26.7]} 11... g6 {[%clk 0:02:44.9]} 12. e4 {[%clk 0:02:14.3]}
12... Nf4 {[%clk 0:02:34.6]} 13. exd5 {[%clk 0:02:05]} 13... Nxd3+ {[%clk
0:02:32.6]} 14. Qxd3 {[%clk 0:02:00.5]} 14... Bf5 {[%clk 0:02:32.3]} 15. Qe3
{[%clk 0:01:54.9]} 15... Qxe3+ {[%clk 0:02:32.2]} 16. fxe3 {[%clk 0:01:55.8]}
16... cxd5 {[%clk 0:02:32.6]} 17. Nxd5 {[%clk 0:01:51.1]} 17... Rc8+ {[%clk
0:02:31.4]} 18. Kd2 {[%clk 0:01:17.7]} 18... Rc2+ {[%clk 0:02:30.8]} 19. Ke1
{[%clk 0:01:18.3]} 19... Rxb2 {[%clk 0:02:29]} 20. Ne7+ {[%clk 0:01:06]} 20...
Kf8 {[%clk 0:02:28.9]} 21. Nxf5 {[%clk 0:01:06.9]} 21... gxf5 {[%clk 0:02:29]}
22. Rd2 {[%clk 0:01:05.6]} 22... Rb1+ {[%clk 0:02:28.8]} 23. Rd1 {[%clk
0:01:05.3]} 23... Rb2 {[%clk 0:02:25.8]} 24. Rd2 {[%clk 0:00:51.7]} 24... Rb1+
{[%clk 0:02:25.3]} 25. Rd1 {[%clk 0:00:50.8]} 25... Rxd1+ {[%clk 0:02:25.4]} 26.
Kxd1 {[%clk 0:00:50.9]} 26... Nc6 {[%clk 0:02:22.7]} 27. Rf1 {[%clk 0:00:46.5]}
27... Re8 {[%clk 0:02:22.3]} 28. Kd2 {[%clk 0:00:45]} 28... Re4 {[%clk
0:02:13.7]} 29. g3 {[%clk 0:00:43.4]} 29... Nb4 {[%clk 0:02:02]} 30. Rb1 {[%clk
0:00:36.8]} 30... Re7 {[%clk 0:01:57.9]} 31. a3 {[%clk 0:00:35.4]} 31... Nd5
{[%clk 0:01:57.2]} 32. Rb3 {[%clk 0:00:23.9]} 32... a4 {[%clk 0:01:52.2]} 33.
Rd3 {[%clk 0:00:24]} 33... b5 {[%clk 0:01:52.2]} 34. Nh4 {[%clk 0:00:21.7]}
34... Ra7 {[%clk 0:01:43.1]} 35. Kc1 {[%clk 0:00:14.3]} 35... b4 {[%clk
0:01:35]} 36. Kb2 {[%clk 0:00:14.2]} 36... b3 {[%clk 0:01:34.9]} 37. Nxf5 {[%clk
0:00:14.1]} 37... Rc7 {[%clk 0:01:33.8]} 38. Rd2 {[%clk 0:00:14.4]} 38... Nf6
{[%clk 0:01:30.6]} 39. d5 {[%clk 0:00:12.9]} 39... Ne4 {[%clk 0:01:30.3]} 40.
Rg2 {[%clk 0:00:12.4]} 40... Rc5 {[%clk 0:01:28.5]} 41. g4 {[%clk 0:00:04.2]}
41... Rxd5 {[%clk 0:01:28]} 42. Nd4 {[%clk 0:00:03.9]} 42... Rc5 {[%clk
0:01:21.5]} 43. h4 {[%clk 0:00:04]} 43... Nc3 {[%clk 0:01:19.2]} 44. Rg3 {[%clk
0:00:03.4]} 44... Nd1+ {[%clk 0:01:17.5]} 45. Kb1 {[%clk 0:00:03.7]} 45... Rc3
{[%clk 0:01:06.4]} 46. g5 {[%clk 0:00:02.6]} 46... Nxe3 {[%clk 0:00:55]} 47. Nf5
{[%clk 0:00:01]} 47... Nd5 {[%clk 0:00:52.3]} 48. Rxc3 {[%clk 0:00:01.9]} 48...
Nxc3+ {[%clk 0:00:52.4]} 49. Kc1 {[%clk 0:00:02.3]} 49... Ne4 {[%clk 0:00:46]}
50. Nd4 {[%clk 0:00:02.1]} 50... Kg7 {[%clk 0:00:45.2]} 51. Nc6 {[%clk
0:00:01.3]} 51... Kg6 {[%clk 0:00:41.5]} 52. Ne5+ {[%clk 0:00:01.4]} 52... Kh5
{[%clk 0:00:41.6]} 53. Nxf7 {[%clk 0:00:01.1]} 53... Kxh4 {[%clk 0:00:42]} 54.
Kb2 {[%clk 0:00:01.1]} 54... Nxg5 {[%clk 0:00:41]} 55. Nd6 {[%clk 0:00:00.6]}
55... Ne6 {[%clk 0:00:39.3]} 56. Nc4 {[%clk 0:00:01.5]} 56... Kg3 {[%clk
0:00:36.7]} 57. Kc3 {[%clk 0:00:01.9]} 57... h5 {[%clk 0:00:36.3]} 58. Kb4
{[%clk 0:00:02.3]} 58... h4 {[%clk 0:00:34.4]} 59. Kxa4 {[%clk 0:00:02.8]} 59...
h3 {[%clk 0:00:32.4]} 60. Nd2 {[%clk 0:00:03]} 60... b2 {[%clk 0:00:32.1]} 61.
Kb3 {[%clk 0:00:02.7]} 61... Kg2 {[%clk 0:00:31.7]} 62. Kxb2 {[%clk 0:00:02.3]}
62... h2 {[%clk 0:00:32.1]} 0-1

[Event "Late-Titled-Tuesday-Blitz-May-14-2024"]
[Site "Chess.com"]
[Date "2024.05.14"]
[Round "10"]
[White "Oleg_Papayan"]
[Black "A4RookA3"]
[Result "1-0"]
[WhiteElo "2616"]
[BlackElo "2439"]
[TimeControl "180+1"]
[EndTime "15:55:03 PDT"]
[Termination "Oleg_Papayan won by resignation"]

1. e4 {[%clk 0:02:58.7]} 1... c6 {[%clk 0:02:43.3]} 2. Nc3 {[%clk 0:02:57.8]}
2... d5 {[%clk 0:02:44.2]} 3. Nf3 {[%clk 0:02:58.4]} 3... Bg4 {[%clk 0:02:44]}
4. Qe2 {[%clk 0:02:58.1]} 4... e6 {[%clk 0:02:39]} 5. exd5 {[%clk 0:02:58.1]}
5... cxd5 {[%clk 0:02:39.2]} 6. Qb5+ {[%clk 0:02:58.7]} 6... Nd7 {[%clk
0:02:25.8]} 7. Qxb7 {[%clk 0:02:58.8]} 7... Bxf3 {[%clk 0:02:25.6]} 8. gxf3
{[%clk 0:02:59.7]} 8... Ngf6 {[%clk 0:02:17.6]} 9. Nb5 {[%clk 0:02:55.9]} 9...
Rc8 {[%clk 0:01:33.5]} 10. d4 {[%clk 0:02:54.8]} 10... a5 {[%clk 0:01:28.1]} 11.
Bf4 {[%clk 0:02:51.1]} 11... Rxc2 {[%clk 0:01:13.9]} 12. Bc7 {[%clk 0:02:31]}
12... Bb4+ {[%clk 0:01:00.5]} 13. Kd1 {[%clk 0:02:30.7]} 13... Rxc7 {[%clk
0:01:00.3]} 14. Qxc7 {[%clk 0:01:54.8]} 14... Qxc7 {[%clk 0:00:50.7]} 15. Nxc7+
{[%clk 0:01:54.8]} 15... Ke7 {[%clk 0:00:51.2]} 16. Nb5 {[%clk 0:01:49.2]} 16...
Rb8 {[%clk 0:00:31]} 17. a3 {[%clk 0:01:39.1]} 17... Bd6 {[%clk 0:00:30.2]} 18.
Nxd6 {[%clk 0:01:39.7]} 18... Kxd6 {[%clk 0:00:31.1]} 19. Kc2 {[%clk 0:01:37.5]}
19... Nh5 {[%clk 0:00:17.8]} 20. b3 {[%clk 0:01:28.3]} 20... Nf4 {[%clk
0:00:17.3]} 21. a4 {[%clk 0:01:19.5]} 21... Rc8+ {[%clk 0:00:15.4]} 22. Kb2
{[%clk 0:01:19.8]} 22... Nb8 {[%clk 0:00:15.6]} 23. Bb5 {[%clk 0:01:18.8]} 23...
Nc6 {[%clk 0:00:15.1]} 24. Rac1 {[%clk 0:01:11.5]} 24... Rc7 {[%clk 0:00:13.2]}
25. Bxc6 {[%clk 0:00:59.9]} 25... Rxc6 {[%clk 0:00:14.1]} 26. Rxc6+ {[%clk
0:01:00.4]} 26... Kxc6 {[%clk 0:00:15]} 27. Rc1+ {[%clk 0:00:46.1]} 27... Kb6
{[%clk 0:00:15.2]} 28. Rc8 {[%clk 0:00:43.5]} 28... Ne2 {[%clk 0:00:12.2]} 29.
Rb8+ {[%clk 0:00:39.8]} 29... Ka6 {[%clk 0:00:07.5]} 30. Rf8 {[%clk 0:00:40.7]}
30... f5 {[%clk 0:00:03.3]} 31. Rf7 {[%clk 0:00:37.1]} 31... g6 {[%clk
0:00:01.9]} 32. Rxh7 {[%clk 0:00:36.1]} 32... Nxd4 {[%clk 0:00:02.5]} 33. f4
{[%clk 0:00:35]} 33... Ne2 {[%clk 0:00:02.3]} 34. Rh4 {[%clk 0:00:22.1]} 34...
Kb6 {[%clk 0:00:02.7]} 35. Kc2 {[%clk 0:00:21.7]} 35... Kc5 {[%clk 0:00:03.2]}
36. Kd3 {[%clk 0:00:21.6]} 36... Nd4 {[%clk 0:00:03.9]} 37. Rh6 {[%clk
0:00:18.5]} 37... Nxb3 {[%clk 0:00:02.8]} 38. Rxg6 {[%clk 0:00:19.1]} 38... Kb4
{[%clk 0:00:02.2]} 39. h4 {[%clk 0:00:18.3]} 39... Kxa4 {[%clk 0:00:01.3]} 40.
h5 {[%clk 0:00:18.4]} 40... Kb4 {[%clk 0:00:01.6]} 41. h6 {[%clk 0:00:18.7]}
41... Nc5+ {[%clk 0:00:02.5]} 42. Kd4 {[%clk 0:00:18.1]} 42... a4 {[%clk
0:00:03.4]} 43. h7 {[%clk 0:00:18.2]} 43... a3 {[%clk 0:00:04]} 44. h8=Q {[%clk
0:00:18.2]} 44... Nb3+ {[%clk 0:00:04.1]} 45. Kd3 {[%clk 0:00:17.4]} 45... a2
{[%clk 0:00:05]} 46. Rg1 {[%clk 0:00:11.6]} 46... Nc5+ {[%clk 0:00:03.1]} 47.
Kc2 {[%clk 0:00:12]} 47... Ne4 {[%clk 0:00:03.4]} 48. Qd4+ {[%clk 0:00:11.1]}
48... Kb5 {[%clk 0:00:03.6]} 49. Qb2+ {[%clk 0:00:09.5]} 49... Kc5 {[%clk
0:00:03.4]} 50. Qxa2 {[%clk 0:00:09.9]} 50... Nd6 {[%clk 0:00:04.3]} 51. Qa3+
{[%clk 0:00:10.1]} 51... Kc6 {[%clk 0:00:04.7]} 52. Kd3 {[%clk 0:00:09.3]} 52...
Nc4 {[%clk 0:00:05]} 53. Rc1 {[%clk 0:00:09.6]} 53... Kb5 {[%clk 0:00:05.3]} 54.
Rxc4 {[%clk 0:00:09.2]} 54... dxc4+ {[%clk 0:00:06.2]} 55. Kd4 {[%clk
0:00:08.8]} 55... e5+ {[%clk 0:00:07.1]} 56. fxe5 {[%clk 0:00:08.5]} 56... c3
{[%clk 0:00:07.6]} 57. Qxc3 {[%clk 0:00:08.5]} 57... Kb6 {[%clk 0:00:07.7]} 58.
Qc5+ {[%clk 0:00:08.6]} 1-0

[Event "Late-Titled-Tuesday-Blitz-May-14-2024"]
[Site "Chess.com"]
[Date "2024.05.14"]
[Round "10"]
[White "GiorgianBarbosa"]
[Black "Chessdude1987"]
[Result "0-1"]
[WhiteElo "2507"]
[BlackElo "2394"]
[TimeControl "180+1"]
[EndTime "15:55:03 PDT"]
[Termination "Chessdude1987 won on time"]

1. b3 {[%clk 0:00:02.5]} 1... e5 {[%clk 0:02:58.9]} 2. Bb2 {[%clk 0:00:03.4]}
2... Nc6 {[%clk 0:02:58.7]} 3. g3 {[%clk 0:00:03.8]} 3... h5 {[%clk 0:02:58]} 4.
Bg2 {[%clk 0:00:04.7]} 4... h4 {[%clk 0:02:58.1]} 5. gxh4 {[%clk 0:00:04.9]}
5... d5 {[%clk 0:02:57]} 6. Nf3 {[%clk 0:00:04.8]} 6... e4 {[%clk 0:02:57]} 7.
Nd4 {[%clk 0:00:05.3]} 7... Nxd4 {[%clk 0:02:56.8]} 8. Bxd4 {[%clk 0:00:06.2]}
8... c5 {[%clk 0:02:57.1]} 9. Bb2 {[%clk 0:00:06.3]} 9... Rxh4 {[%clk
0:02:55.3]} 10. d3 {[%clk 0:00:06.6]} 10... Rg4 {[%clk 0:02:49.5]} 11. Kf1
{[%clk 0:00:06.5]} 11... e3 {[%clk 0:02:44.2]} 12. fxe3 {[%clk 0:00:04]} 12...
Rxg2 {[%clk 0:02:39.5]} 13. Kxg2 {[%clk 0:00:04.1]} 13... Qg5+ {[%clk
0:02:39.7]} 14. Kf2 {[%clk 0:00:03.8]} 14... Qh4+ {[%clk 0:02:39.7]} 15. Kf1
{[%clk 0:00:03.5]} 15... Bh3+ {[%clk 0:02:38.7]} 16. Kg1 {[%clk 0:00:02.8]}
16... Qg4+ {[%clk 0:02:27.2]} 17. Kf2 {[%clk 0:00:03.7]} 17... Qg2+ {[%clk
0:02:26.8]} 18. Ke1 {[%clk 0:00:04.6]} 18... Qxh1+ {[%clk 0:02:26.9]} 19. Kd2
{[%clk 0:00:04.7]} 19... Qxd1+ {[%clk 0:02:26.1]} 20. Kxd1 {[%clk 0:00:05.6]}
20... O-O-O {[%clk 0:02:18.1]} 21. Nd2 {[%clk 0:00:06.5]} 21... Bd6 {[%clk
0:02:17.5]} 22. Ke1 {[%clk 0:00:05.7]} 22... Bxh2 {[%clk 0:02:16.8]} 23. Kf2
{[%clk 0:00:06.3]} 23... Bd6 {[%clk 0:02:12.9]} 24. Bxg7 {[%clk 0:00:06]} 24...
f6 {[%clk 0:02:04.1]} 25. Rh1 {[%clk 0:00:06.3]} 25... Be6 {[%clk 0:02:01.2]}
26. Rh8 {[%clk 0:00:06.4]} 26... Kc7 {[%clk 0:01:56.8]} 27. Nf3 {[%clk
0:00:05.7]} 27... Rd7 {[%clk 0:01:48.4]} 28. Bh6 {[%clk 0:00:06]} 28... Nxh6
{[%clk 0:01:32.4]} 29. Rxh6 {[%clk 0:00:06.9]} 29... Rf7 {[%clk 0:01:31.8]} 30.
c4 {[%clk 0:00:07.4]} 30... dxc4 {[%clk 0:01:30.6]} 31. bxc4 {[%clk 0:00:08.3]}
31... a6 {[%clk 0:01:28.6]} 32. Ke1 {[%clk 0:00:08.5]} 32... b5 {[%clk
0:01:28.3]} 33. cxb5 {[%clk 0:00:08.8]} 33... axb5 {[%clk 0:01:28.1]} 34. a3
{[%clk 0:00:09.4]} 34... Bd5 {[%clk 0:01:18.3]} 35. e4 {[%clk 0:00:09.1]} 35...
Bc6 {[%clk 0:01:14.3]} 36. Kd2 {[%clk 0:00:08.8]} 36... Bf4+ {[%clk 0:00:40.7]}
37. e3 {[%clk 0:00:07.2]} 37... Bxh6 {[%clk 0:00:40.4]} 38. Kc3 {[%clk
0:00:06.9]} 38... f5 {[%clk 0:00:38.9]} 39. d4 {[%clk 0:00:06]} 39... fxe4
{[%clk 0:00:36.5]} 40. Ne5 {[%clk 0:00:02.3]} 40... cxd4+ {[%clk 0:00:36.3]} 41.
Kxd4 {[%clk 0:00:03.1]} 41... Bg7 {[%clk 0:00:35.7]} 42. a4 {[%clk 0:00:03.1]}
42... Re7 {[%clk 0:00:33.5]} 43. Kc5 {[%clk 0:00:04]} 43... Rxe5+ {[%clk
0:00:32.7]} 44. Kb4 {[%clk 0:00:04.9]} 44... bxa4 {[%clk 0:00:32]} 45. Kc4
{[%clk 0:00:05.8]} 45... Rc5+ {[%clk 0:00:30]} 46. Kb4 {[%clk 0:00:06.7]} 46...
a3 {[%clk 0:00:29.1]} 47. Kxa3 {[%clk 0:00:07.6]} 47... Rc3+ {[%clk 0:00:29.1]}
48. Kb2 {[%clk 0:00:08.5]} 48... Rxe3+ {[%clk 0:00:29]} 49. Kc2 {[%clk
0:00:09.2]} 49... Rd3 {[%clk 0:00:29.2]} 50. Kc1 {[%clk 0:00:09.4]} 50... Kd6
{[%clk 0:00:29]} 51. Kb1 {[%clk 0:00:09.9]} 51... Rd2 {[%clk 0:00:23.9]} 52. Kc1
{[%clk 0:00:09.8]} 52... e3 {[%clk 0:00:24.1]} 53. Kb1 {[%clk 0:00:10.7]} 53...
Kc5 {[%clk 0:00:23.4]} 54. Kc1 {[%clk 0:00:11.6]} 54... Kb4 {[%clk 0:00:23.2]}
55. Kb1 {[%clk 0:00:12.5]} 55... Kb3 {[%clk 0:00:22.5]} 0-1